fUST/lending_fUST_20250719
["ID","MTS","AMOUNT","RATE_DAILY","PERIOD"]
[373226866,1752916250334,-1110.28,0.00017408,2]
[373226867,1752916250345,-1110.36499386,0.00017408,2]
[373226868,1752916250354,-500.0,0.00017421,2]
[373226869,1752916250366,-1000.0,0.00017421,2]
[373226870,1752916250375,-500.0,0.00017421,2]
[373226871,1752916250385,-500.89047379,0.00017421,2]
[373226872,1752916250395,-500.0,0.00017421,2]
[373226873,1752916250404,-151.0,0.000175,2]
[373226874,1752916250414,-171.81292734,0.000175,2]
[373226875,1752916250424,-500.0,0.00017539,2]
[373226876,1752916250433,-500.0,0.00017573,2]
[373226877,1752916250443,-501.03358193,0.00017573,2]
[373226878,1752916250453,-501.54077295,0.00017573,2]
[373226879,1752916250462,-500.0,0.00017573,2]
[373226880,1752916250472,-500.0,0.00017573,2]
[373226881,1752916250481,-500.0,0.00017573,2]
[373226882,1752916250490,-501.25972911,0.00017573,2]
[373226883,1752916250500,-500.0,0.00017573,2]
[373226884,1752916250509,-500.0,0.00017573,2]
[373226885,1752916250519,-500.0,0.00017573,2]
[373226886,1752916250528,-504.75893766,0.00017573,2]
[373226887,1752916250537,-500.0,0.00017573,2]
[373226888,1752916250547,-500.0,0.00017573,2]
[373226889,1752916250558,-500.35949827,0.00017573,2]
[373226890,1752916250567,-302.17969699,0.00017573,2]
[373226891,1752916250577,-500.0,0.00017573,2]
[373226892,1752916250586,-500.0,0.00017573,2]
[373226893,1752916250598,-500.0,0.00017573,2]
[373226894,1752916250607,-500.0,0.00017573,2]
[373226895,1752916250617,-500.0,0.00017573,2]
[373226896,1752916250626,-300.13698639,0.00017573,2]
[373226897,1752916250636,-500.0,0.00017573,2]
[373226898,1752916250645,-500.0,0.00017573,2]
[373226899,1752916250655,-500.0,0.00017573,2]
[373226900,1752916250664,-500.0,0.00017573,2]
[373226901,1752916250673,-500.0,0.00017573,2]
[373226902,1752916250683,-500.0,0.00017573,2]
[373226903,1752916250694,-500.0,0.00017573,2]
[373226904,1752916250703,-501.66468678,0.00017573,2]
[373226905,1752916250713,-626.22700118,0.00017573,2]
[373226906,1752916250723,-151.0,0.00017573,2]
[373226907,1752916250732,-151.35265,0.00017573,2]
[373226908,1752916250741,-204.467065,0.00017573,2]
[373226909,1752916250752,-156.843852,0.00017573,2]
[373226910,1752916250762,-717.88,0.00017582,2]
[373226911,1752916250772,-717.88,0.00017582,2]
[373226912,1752916250781,-717.88,0.00017582,2]
[373226913,1752916250791,-717.88,0.00017582,2]
[373226914,1752916250802,-717.88,0.00017582,2]
[373226915,1752916250812,-717.88,0.00017582,2]
[373226916,1752916250821,-717.88,0.00017582,2]
[373226917,1752916250831,-717.88,0.00017582,2]
[373226918,1752916250842,-717.95,0.00017582,2]
[373226919,1752916250852,-152.042613,0.00017582,2]
[373226920,1752916250862,-500.0,0.00017582,2]
[373226921,1752916250872,-1120.69732043,0.00017582,2]
[373226922,1752916250883,-1120.69732043,0.00017582,2]
[373226923,1752916250892,-324.89763541,0.00017582,2]
[373226924,1752916250902,-1120.69732043,0.00017582,2]
[373226925,1752916250911,-1120.69732043,0.00017582,2]
[373226926,1752916250920,-1120.69732043,0.00017582,2]
[373226927,1752916250930,-1120.69732043,0.00017582,2]
[373226928,1752916250939,-1120.69732043,0.00017582,2]
[373226929,1752916250949,-1120.69732043,0.00017582,2]
[373226930,1752916250958,-1120.69732043,0.00017582,2]
[373226931,1752916250967,-1120.69732043,0.00017582,2]
[373226932,1752916250977,-1120.69732043,0.00017582,2]
[373226933,1752916250987,-1120.69732043,0.00017582,2]
[373226934,1752916250997,-1120.69732043,0.00017582,2]
[373226935,1752916251006,-1120.69732043,0.00017582,2]
[373226936,1752916251016,-1120.69732043,0.00017582,2]
[373226937,1752916251025,-1120.69732043,0.00017582,2]
[373226938,1752916251035,-1120.69732043,0.00017582,2]
[373226939,1752916251044,-1120.69732043,0.00017582,2]
[373226940,1752916251054,-1120.69732043,0.00017582,2]
[373226941,1752916251063,-1161.44995025,0.00017582,2]
[373226942,1752916251072,-1161.44995025,0.00017582,2]
[373226943,1752916251082,-1161.44995025,0.00017582,2]
[373226944,1752916251093,-1161.44995025,0.00017582,2]
[373226945,1752916251102,-1161.44995025,0.00017582,2]
[373226946,1752916251112,-1161.44995025,0.00017582,2]
[373226947,1752916251121,-1161.44995025,0.00017582,2]
[373226948,1752916251130,-1161.44995025,0.00017582,2]
[373226949,1752916251140,-1161.44995025,0.00017582,2]
[373226950,1752916251149,-1690.55492761,0.00017582,2]
[373226951,1752916251159,-151.0,0.00017583,2]
[373226952,1752916251169,-152.450528,0.00017583,2]
[373226953,1752916251179,-415.150377,0.00017583,2]
[373226954,1752916251188,-415.150377,0.00017583,2]
[373226955,1752916251198,-151.0,0.00017583,2]
[373226956,1752916251209,-151.0,0.00017583,2]
[373226957,1752916251222,-151.0,0.00017583,2]
[373226958,1752916251231,-151.0,0.00017583,2]
[373226959,1752916251241,-293.036372,0.00017583,2]
[373226960,1752916251251,-293.036372,0.00017583,2]
[373226961,1752916251261,-345.030276,0.00017583,2]
[373226962,1752916251271,-345.030276,0.00017583,2]
[373226963,1752916251280,-151.0,0.00017583,2]
[373226964,1752916251291,-151.0,0.00017583,2]
[373226965,1752916251301,-168.849313,0.00017583,2]
[373226966,1752916251310,-151.0,0.00017583,2]
[373226967,1752916251320,-418.298156,0.00017583,2]
[373226968,1752916251330,-418.298156,0.00017583,2]
[373226969,1752916251339,-151.815318,0.00017583,2]
[373226970,1752916251350,-241.161795,0.00017583,2]
[373226971,1752916251360,-151.0,0.00017583,2]
[373226972,1752916251370,-226.474022,0.00017583,2]
[373226973,1752916251381,-151.0,0.00017583,2]
[373226974,1752916251391,-176.226322,0.00017583,2]
[373226975,1752916251400,-370000.0,0.00017583,2]
[373226976,1752916251410,-151.0,0.000176,2]
[373226977,1752916251419,-160.0,0.00017657,2]
[373226978,1752916251429,-460.0,0.00017678,2]
[373226979,1752916251438,-5133.69,0.00017678,2]
[373226980,1752916251448,-460.0,0.00017679,2]
[373226981,1752916251458,-460.0,0.00017679,2]
[373226982,1752916251467,-460.0,0.00017679,2]
[373226983,1752916251477,-2916.31,0.00017679,2]
[373226984,1752916251486,-2071.08,0.00017679,2]
[373226985,1752916251496,-677.36,0.00017679,2]
[373226986,1752916251505,-460.0,0.00017679,2]
[373226987,1752916251515,-2419.91,0.00017679,2]
[373226988,1752916251525,-460.0,0.00017679,2]
[373226989,1752916251534,-460.0,0.00017679,2]
[373226990,1752916251544,-460.0,0.00017679,2]
[373226991,1752916251553,-466.75911472,0.00017679,2]
[373226992,1752916251562,-1354.34,0.00017679,2]
[373226993,1752916251572,-1223.81,0.00017679,2]
[373226994,1752916251581,-460.0,0.00017679,2]
[373226995,1752916251591,-460.0,0.00017679,2]
[373226996,1752916251602,-551.44,0.00017679,2]
[373226997,1752916251611,-1938.71,0.00017679,2]
[373226998,1752916251621,-460.0,0.00017679,2]
[373226999,1752916251630,-472.36,0.00017679,2]
[373227000,1752916251640,-460.0,0.00017679,2]
[373227001,1752916251649,-744.37,0.00017679,2]
[373227002,1752916251659,-460.0,0.00017679,2]
[373227003,1752916251668,-460.0,0.00017679,2]
[373227004,1752916251678,-460.0,0.00017679,2]
[373227005,1752916251687,-460.0,0.0001768,2]
[373227006,1752916251696,-460.0,0.0001768,2]
[373227007,1752916251706,-460.0,0.0001768,2]
[373227008,1752916251715,-460.0,0.0001768,2]
[373227009,1752916251725,-460.0,0.0001768,2]
[373227010,1752916251734,-460.0,0.0001768,2]
[373227011,1752916251743,-460.0,0.0001768,2]
[373227012,1752916251752,-460.0,0.0001768,2]
[373227013,1752916251762,-460.0,0.0001768,2]
[373227014,1752916251772,-460.0,0.0001768,2]
[373227015,1752916251782,-460.0,0.0001768,2]
[373227016,1752916251791,-460.0,0.0001768,2]
[373227017,1752916251801,-460.0,0.0001768,2]
[373227018,1752916251900,-460.0,0.0001768,2]
[373227019,1752916251911,-460.0,0.0001768,2]
[373227020,1752916251921,-460.0,0.0001768,2]
[373227021,1752916251930,-460.0,0.0001768,2]
[373227022,1752916251940,-460.0,0.0001768,2]
[373227023,1752916251949,-514.48,0.0001768,2]
[373227024,1752916251959,-500.0,0.0001768,2]
[373227025,1752916251969,-460.0,0.0001768,2]
[373227026,1752916251979,-460.0,0.0001768,2]
[373227027,1752916251989,-321.09837773,0.0001768,2]
[373227028,1752916251999,-460.0,0.0001768,2]
[373227029,1752916252008,-460.0,0.0001768,2]
[373227030,1752916252018,-460.0,0.0001768,2]
[373227031,1752916252027,-460.0,0.0001768,2]
[373227032,1752916252037,-460.0,0.0001768,2]
[373227033,1752916252046,-460.0,0.0001768,2]
[373227034,1752916252055,-3376.62,0.0001768,2]
[373227035,1752916252064,-512.86,0.0001768,2]
[373227036,1752916252073,-460.0,0.0001768,2]
[373227037,1752916252082,-935.98,0.0001768,2]
[373227038,1752916252092,-460.0,0.0001768,2]
[373227039,1752916252102,-460.0,0.0001768,2]
[373227040,1752916252111,-460.0,0.0001768,2]
[373227041,1752916252120,-460.0,0.0001768,2]
[373227042,1752916252130,-460.0,0.0001768,2]
[373227043,1752916252139,-1358.61,0.0001768,2]
[373227044,1752916252148,-460.0,0.0001768,2]
[373227045,1752916252158,-5107.46111942,0.00017681,2]
[373227046,1752916252167,-460.0,0.00017681,2]
[373227047,1752916252176,-460.0,0.00017681,2]
[373227048,1752916252186,-460.0,0.00017681,2]
[373227049,1752916252195,-460.0,0.00017681,2]
[373227050,1752916252206,-460.0,0.00017681,2]
[373227051,1752916252219,-820.72,0.00017681,2]
[373227052,1752916252229,-460.0,0.00017681,2]
[373227053,1752916252239,-1223.5,0.00017681,2]
[373227054,1752916252248,-1245.9,0.00017681,2]
[373227055,1752916252257,-460.0,0.00017681,2]
[373227056,1752916252267,-460.0,0.00017681,2]
[373227057,1752916252287,-460.0,0.00017681,2]
[373227058,1752916252298,-665.09,0.00017681,2]
[373227059,1752916252307,-460.0,0.00017681,2]
[373227060,1752916252317,-769.32,0.00017681,2]
[373227061,1752916252327,-1239.35,0.00017681,2]
[373227062,1752916252337,-460.0,0.00017681,2]
[373227063,1752916252347,-460.0,0.00017681,2]
[373227064,1752916252357,-460.0,0.00017681,2]
[373227065,1752916252366,-460.0,0.00017681,2]
[373227066,1752916252375,-1133.93,0.00017681,2]
[373227067,1752916252385,-460.0,0.00017681,2]
[373227068,1752916252394,-460.0,0.00017681,2]
[373227069,1752916252403,-460.0,0.00017681,2]
[373227070,1752916252411,-460.0,0.00017681,2]
[373227071,1752916252420,-460.0,0.00017682,2]
[373227072,1752916252429,-460.0,0.00017682,2]
[373227073,1752916252438,-151.0,0.000177,2]
[373227074,1752916252447,-151.0,0.000179,2]
[373227075,1752916252457,-6108.56047315,0.000179,2]
[373227076,1752916252465,-212.23383675,0.00017918,3]
[373227077,1752916252475,-863.32,0.00017945,3]
[373227078,1752916252484,-431.66,0.00017945,3]
[373227079,1752916252494,-460.0,0.00017952,2]
[373227080,1752916252504,-5133.69,0.00017952,2]
[373227081,1752916252513,-460.0,0.00017953,2]
[373227082,1752916252522,-383.96,0.00017953,2]
[373227083,1752916252531,-460.0,0.00017953,2]
[373227084,1752916252540,-2916.31,0.00017953,2]
[373227085,1752916252550,-2071.08,0.00017953,2]
[373227086,1752916252559,-677.36,0.00017953,2]
[373227087,1752916252569,-460.0,0.00017953,2]
[373227088,1752916252579,-2419.91,0.00017953,2]
[373227089,1752916252589,-460.0,0.00017953,2]
[373227090,1752916252600,-460.0,0.00017953,2]
[373227091,1752916252609,-1354.34,0.00017953,2]
[373227092,1752916252619,-1223.81,0.00017953,2]
[373227093,1752916252629,-460.0,0.00017953,2]
[373227094,1752916252639,-460.0,0.00017953,2]
[373227095,1752916252649,-551.44,0.00017953,2]
[373227096,1752916252660,-1938.71,0.00017953,2]
[373227097,1752916252669,-472.36,0.00017953,2]
[373227098,1752916252679,-460.0,0.00017953,2]
[373227099,1752916252688,-744.37,0.00017953,2]
[373227100,1752916252698,-460.0,0.00017953,2]
[373227101,1752916252707,-418.18023803,0.00017953,2]
[373227102,1752916252717,-529.4,0.00017954,2]
[373227103,1752916252727,-460.0,0.00017954,2]
[373227104,1752916252737,-460.0,0.00017954,2]
[373227105,1752916252747,-460.0,0.00017954,2]
[373227106,1752916252755,-460.0,0.00017954,2]
[373227107,1752916252765,-460.0,0.00017954,2]
[373227108,1752916252775,-460.0,0.00017954,2]
[373227109,1752916252784,-460.0,0.00017954,2]
[373227110,1752916252795,-460.0,0.00017954,2]
[373227111,1752916252804,-460.0,0.00017954,2]
[373227112,1752916252814,-460.0,0.00017954,2]
[373227113,1752916252823,-460.0,0.00017954,2]
[373227114,1752916252832,-460.0,0.00017954,2]
[373227115,1752916252840,-460.0,0.00017954,2]
[373227116,1752916252850,-460.0,0.00017954,2]
[373227117,1752916252859,-460.0,0.00017954,2]
[373227118,1752916252868,-514.48,0.00017954,2]
[373227119,1752916252878,-413.82805437,0.00017954,2]
[373227120,1752916252888,-460.0,0.00017954,2]
[373227121,1752916252898,-460.0,0.00017954,2]
[373227122,1752916252907,-460.0,0.00017954,2]
[373227123,1752916252918,-460.0,0.00017954,2]
[373227124,1752916252927,-460.0,0.00017954,2]
[373227125,1752916252937,-3376.62,0.00017954,2]
[373227126,1752916252950,-512.86,0.00017954,2]
[373227127,1752916252959,-460.0,0.00017954,2]
[373227128,1752916252969,-935.98,0.00017954,2]
[373227129,1752916252979,-460.0,0.00017954,2]
[373227130,1752916252988,-460.0,0.00017954,2]
[373227131,1752916252997,-460.0,0.00017954,2]
[373227132,1752916253007,-1358.61,0.00017954,2]
[373227133,1752916253017,-460.0,0.00017954,2]
[373227134,1752916253026,-460.0,0.00017955,2]
[373227135,1752916253036,-460.0,0.00017955,2]
[373227136,1752916253045,-460.0,0.00017955,2]
[373227137,1752916253055,-460.0,0.00017955,2]
[373227138,1752916253065,-460.0,0.00017955,2]
[373227139,1752916253074,-820.72,0.00017955,2]
[373227140,1752916253083,-460.0,0.00017955,2]
[373227141,1752916253093,-151.0,0.00017955,2]
[373227142,1752916253102,-1223.5,0.00017955,2]
[373227143,1752916253111,-1245.9,0.00017955,2]
[373227144,1752916253121,-151.0,0.00017955,2]
[373227145,1752916253130,-460.0,0.00017955,2]
[373227146,1752916253139,-460.0,0.00017955,2]
[373227147,1752916253149,-665.09,0.00017955,2]
[373227148,1752916253159,-460.0,0.00017955,2]
[373227149,1752916253170,-418.298156,0.00017955,2]
[373227150,1752916253180,-769.32,0.00017955,2]
[373227151,1752916253189,-418.298156,0.00017955,2]
[373227152,1752916253199,-1239.35,0.00017955,2]
[373227153,1752916253213,-460.0,0.00017955,2]
[373227154,1752916253223,-460.0,0.00017955,2]
[373227155,1752916253232,-460.0,0.00017955,2]
[373227156,1752916253243,-460.0,0.00017955,2]
[373227157,1752916253256,-1133.93,0.00017955,2]
[373227158,1752916253265,-460.0,0.00017955,2]
[373227159,1752916253275,-460.0,0.00017955,2]
[373227160,1752916253284,-460.0,0.00017955,2]
[373227161,1752916253294,-460.0,0.00017956,2]
[373227162,1752916253303,-460.0,0.00017956,2]
[373227163,1752916253313,-151.0,0.00017956,2]
[373227164,1752916253322,-151.0,0.00017956,2]
[373227165,1752916253332,-1500.0,0.00017968,2]
[373227166,1752916253341,-332.20790462,0.0001797,2]
[373227167,1752916253352,-160.0,0.00017977,2]
[373227168,1752916253361,-160.0,0.00017977,2]
[373227169,1752916253371,-214.52603969,0.00017977,2]
[373227170,1752916253380,-160.0,0.00017977,2]
[373227171,1752916253389,-476.34170116,0.00017977,2]
[373227172,1752916253399,-525.83049785,0.00017977,2]
[373227173,1752916253408,-160.0,0.00017977,2]
[373227174,1752916253418,-12612.80205064,0.00017977,2]
[373227175,1752916253427,-160.0,0.00017977,2]
[373227176,1752916253437,-160.0,0.00017977,2]
[373227177,1752916253447,-230.94145789,0.00017977,2]
[373227178,1752916253456,-839.454303,0.00017977,2]
[373227179,1752916253466,-160.0,0.00017977,2]
[373227180,1752916253475,-215.67360783,0.00017977,2]
[373227181,1752916253484,-160.0,0.00017977,2]
[373227182,1752916253494,-160.0,0.00017979,2]
[373227183,1752916253504,-151.0,0.00018,2]
[373227184,1752916253513,-151.0,0.000181,2]
[373227185,1752916253523,-151.0,0.000181,2]
[373227186,1752916253532,-420.0,0.00018118,2]
[373227187,1752916253542,-1000.0,0.00018121,2]
[373227188,1752916253551,-1000.0,0.00018121,2]
[373227189,1752916253562,-1000.0,0.00018121,2]
[373227190,1752916253571,-1097.608528,0.00018121,2]
[373227191,1752916253580,-1074.67166428,0.00018121,2]
[373227192,1752916253590,-703.83339572,0.00018121,2]
[373227193,1752916253601,-1001.46972497,0.00018121,2]
[373227194,1752916253611,-227.33028528,0.00018121,2]
[373227195,1752916253620,-1000.0,0.00018121,2]
[373227196,1752916253629,-1000.0,0.00018121,2]
[373227197,1752916253638,-1000.0,0.00018121,2]
[373227198,1752916253648,-1092.78461808,0.00018121,2]
[373227199,1752916253657,-1000.0,0.00018121,2]
[373227200,1752916253666,-500.0,0.00018121,2]
[373227201,1752916253675,-151.0,0.00018121,2]
[373227202,1752916253685,-151.0,0.00018141,2]
[373227203,1752916253694,-151.0,0.00018141,2]
[373227204,1752916253704,-6108.5604731,0.00018141,2]
[373227205,1752916253714,-260.0,0.00018205,2]
[373227206,1752916253724,-460.0,0.00018226,2]
[373227207,1752916253734,-5133.69,0.00018226,2]
[373227208,1752916253743,-460.0,0.00018227,2]
[373227209,1752916253753,-151.0,0.00018227,2]
[373227210,1752916253762,-151.0,0.00018227,2]
[373227211,1752916253772,-151.0,0.00018227,2]
[373227212,1752916253782,-460.0,0.00018227,2]
[373227213,1752916253791,-2916.31,0.00018227,2]
[373227214,1752916253802,-2071.08,0.00018227,2]
[373227215,1752916253902,-677.36,0.00018227,2]
[373227216,1752916253912,-293.036372,0.00018227,2]
[373227217,1752916253922,-293.036372,0.00018227,2]
[373227218,1752916253931,-345.030276,0.00018227,2]
[373227219,1752916253941,-460.0,0.00018227,2]
[373227220,1752916253950,-345.030276,0.00018227,2]
[373227221,1752916253960,-2419.91,0.00018227,2]
[373227222,1752916253969,-460.0,0.00018227,2]
[373227223,1752916253979,-460.0,0.00018227,2]
[373227224,1752916253988,-1354.34,0.00018227,2]
[373227225,1752916253998,-1223.81,0.00018227,2]
[373227226,1752916254007,-460.0,0.00018227,2]
[373227227,1752916254017,-460.0,0.00018227,2]
[373227228,1752916254027,-551.44,0.00018227,2]
[373227229,1752916254036,-1938.71,0.00018227,2]
[373227230,1752916254046,-472.36,0.00018227,2]
[373227231,1752916254055,-460.0,0.00018227,2]
[373227232,1752916254064,-744.37,0.00018227,2]
[373227233,1752916254074,-460.0,0.00018227,2]
[373227234,1752916254083,-460.0,0.00018228,2]
[373227235,1752916254096,-460.0,0.00018228,2]
[373227236,1752916254105,-460.0,0.00018228,2]
[373227237,1752916254114,-460.0,0.00018228,2]
[373227238,1752916254124,-460.0,0.00018228,2]
[373227239,1752916254133,-460.0,0.00018228,2]
[373227240,1752916254143,-460.0,0.00018228,2]
[373227241,1752916254153,-460.0,0.00018228,2]
[373227242,1752916254163,-460.0,0.00018228,2]
[373227243,1752916254178,-460.0,0.00018228,2]
[373227244,1752916254188,-460.0,0.00018228,2]
[373227245,1752916254197,-460.0,0.00018228,2]
[373227246,1752916254206,-460.0,0.00018228,2]
[373227247,1752916254217,-460.0,0.00018228,2]
[373227248,1752916254228,-514.48,0.00018228,2]
[373227249,1752916254239,-460.0,0.00018228,2]
[373227250,1752916254248,-460.0,0.00018228,2]
[373227251,1752916254258,-460.0,0.00018228,2]
[373227252,1752916254267,-460.0,0.00018228,2]
[373227253,1752916254276,-3376.62,0.00018228,2]
[373227254,1752916254285,-512.86,0.00018228,2]
[373227255,1752916254295,-460.0,0.00018228,2]
[373227256,1752916254304,-935.98,0.00018228,2]
[373227257,1752916254313,-460.0,0.00018228,2]
[373227258,1752916254323,-460.0,0.00018228,2]
[373227259,1752916254333,-460.0,0.00018228,2]
[373227260,1752916254342,-1358.61,0.00018228,2]
[373227261,1752916254353,-460.0,0.00018228,2]
[373227262,1752916254362,-460.0,0.00018229,2]
[373227263,1752916254372,-151.0,0.00018229,2]
[373227264,1752916254381,-175.42131808,0.00018229,2]
[373227265,1752916254391,-415.150377,0.00018229,2]
[373227266,1752916254400,-415.150377,0.00018229,2]
[373227267,1752916254409,-460.0,0.00018229,2]
[373227268,1752916254418,-460.0,0.00018229,2]
[373227269,1752916254427,-820.72,0.00018229,2]
[373227270,1752916254439,-460.0,0.00018229,2]
[373227271,1752916254448,-151.0,0.00018229,2]
[373227272,1752916254458,-1223.5,0.00018229,2]
[373227273,1752916254468,-1245.9,0.00018229,2]
[373227274,1752916254477,-460.0,0.00018229,2]
[373227275,1752916254486,-460.0,0.00018229,2]
[373227276,1752916254496,-665.09,0.00018229,2]
[373227277,1752916254505,-460.0,0.00018229,2]
[373227278,1752916254514,-769.32,0.00018229,2]
[373227279,1752916254523,-1239.35,0.00018229,2]
[373227280,1752916254533,-460.0,0.00018229,2]
[373227281,1752916254542,-460.0,0.00018229,2]
[373227282,1752916254551,-460.0,0.00018229,2]
[373227283,1752916254561,-1133.93,0.00018229,2]
[373227284,1752916254570,-460.0,0.00018229,2]
[373227285,1752916254580,-331.19866621,0.00018229,2]
[373227286,1752916254592,-460.0,0.00018229,2]
[373227287,1752916254603,-460.0,0.0001823,2]
[373227288,1752916254613,-460.0,0.0001823,2]
[373227289,1752916254623,-151.0,0.00018231,2]
[373227290,1752916254633,-151.0,0.00018231,2]
[373227291,1752916254642,-151.0,0.00018231,2]
[373227292,1752916254651,-151.0,0.00018231,2]
[373227293,1752916254661,-151.0,0.00018231,2]
[373227294,1752916254670,-151.0,0.00018233,2]
[373227295,1752916254679,-900.0,0.00018293,2]
[373227296,1752916254689,-800.0,0.00018335,2]
[373227297,1752916254699,-6108.5604731,0.00018383,2]
[373227298,1752916254709,-460.0,0.000185,2]
[373227299,1752916254718,-5133.69,0.000185,2]
[373227300,1752916254728,-460.0,0.00018501,2]
[373227301,1752916254738,-460.0,0.00018501,2]
[373227302,1752916254748,-2916.31,0.00018501,2]
[373227303,1752916254758,-2071.08,0.00018501,2]
[373227304,1752916254768,-677.36,0.00018501,2]
[373227305,1752916254779,-460.0,0.00018501,2]
[373227306,1752916254789,-2419.91,0.00018501,2]
[373227307,1752916254799,-460.0,0.00018501,2]
[373227308,1752916254809,-460.0,0.00018501,2]
[373227309,1752916254819,-1354.34,0.00018501,2]
[373227310,1752916254828,-1223.81,0.00018501,2]
[373227311,1752916254838,-460.0,0.00018501,2]
[373227312,1752916254849,-460.0,0.00018501,2]
[373227313,1752916254860,-551.44,0.00018501,2]
[373227314,1752916254870,-1938.71,0.00018501,2]
[373227315,1752916254880,-472.36,0.00018501,2]
[373227316,1752916254890,-460.0,0.00018501,2]
[373227317,1752916254900,-744.37,0.00018501,2]
[373227318,1752916254910,-460.0,0.00018502,2]
[373227319,1752916254920,-460.0,0.00018502,2]
[373227320,1752916254929,-460.0,0.00018502,2]
[373227321,1752916254939,-461.69,0.00018502,2]
[373227322,1752916254949,-460.0,0.00018502,2]
[373227323,1752916254959,-460.0,0.00018502,2]
[373227324,1752916254968,-460.0,0.00018502,2]
[373227325,1752916254977,-431.4586869,0.00018502,2]
[373227326,1752916254986,-460.0,0.00018502,2]
[373227327,1752916254995,-460.0,0.00018502,2]
[373227328,1752916255005,-460.0,0.00018502,2]
[373227329,1752916255014,-460.0,0.00018502,2]
[373227330,1752916255023,-514.48,0.00018502,2]
[373227331,1752916255031,-460.0,0.00018502,2]
[373227332,1752916255040,-460.0,0.00018502,2]
[373227333,1752916255050,-460.0,0.00018502,2]
[373227334,1752916255059,-205.52373918,0.00018502,2]
[373227335,1752916255069,-3376.62,0.00018502,2]
[373227336,1752916255078,-512.86,0.00018502,2]
[373227337,1752916255087,-460.0,0.00018502,2]
[373227338,1752916255096,-935.98,0.00018502,2]
[373227339,1752916255106,-460.0,0.00018502,2]
[373227340,1752916255115,-460.0,0.00018502,2]
[373227341,1752916255124,-460.0,0.00018502,2]
[373227342,1752916255134,-1358.61,0.00018502,2]
[373227343,1752916255143,-460.0,0.00018502,2]
[373227344,1752916255153,-213.06063948,0.00018503,2]
[373227345,1752916255162,-151.0,0.00018503,2]
[373227346,1752916255171,-151.0,0.00018503,2]
[373227347,1752916255181,-151.0,0.00018503,2]
[373227348,1752916255191,-151.0,0.00018503,2]
[373227349,1752916255200,-151.0,0.00018503,2]
[373227350,1752916255210,-151.0,0.00018503,2]
[373227351,1752916255222,-285.019285,0.00018503,2]
[373227352,1752916255233,-285.019285,0.00018503,2]
[373227353,1752916255242,-151.0,0.00018503,2]
[373227354,1752916255253,-151.0,0.00018503,2]
[373227355,1752916255264,-1210.502323,0.00018503,2]
[373227356,1752916255273,-460.0,0.00018503,2]
[373227357,1752916255292,-460.0,0.00018503,2]
[373227358,1752916255314,-820.72,0.00018503,2]
[373227359,1752916255334,-460.0,0.00018503,2]
[373227360,1752916255348,-1223.5,0.00018503,2]
[373227361,1752916255357,-1245.9,0.00018503,2]
[373227362,1752916255367,-460.0,0.00018503,2]
[373227363,1752916255377,-460.0,0.00018503,2]
[373227364,1752916255387,-665.09,0.00018503,2]
[373227365,1752916255398,-460.0,0.00018503,2]